[Event "Titled Tuesday Blitz April 4 Early 2023"]
[White "Svane, Rasmus"]
[Black "Ibadov, Dashgyn"]
[WhiteFideId "4657101"]
[BlackFideId "24107514"]
[WhiteElo "2597"]
[BlackElo "2208"]
[Result "1/2-1/2"]
[Round "01"]
[TimeControl "180+2"]
[Date "2023.04.04"]
[WhiteClock "0:00:23"]
[BlackClock "0:00:30"]

1. Nf3 {[%clk 0:03:00]}  d5 {[%clk 0:02:59]} 2. g3 {[%clk 0:03:00]}  Nd7 {[%clk 0:02:59]} 3. d4 {[%clk 0:02:59]}  Nb6 {[%clk 0:02:57]} 4. Nc3 {[%clk 0:02:59]}  c6 {[%clk 0:02:49]} 5. Bg2 {[%clk 0:02:56]}  Nf6 {[%clk 0:02:46]} 6. O-O {[%clk 0:02:53]}  h6 {[%clk 0:02:43]} 7. Nd2 {[%clk 0:02:39]}  Bf5 {[%clk 0:02:42]} 8. e4 {[%clk 0:02:39]}  dxe4 {[%clk 0:02:43]} 9. Ndxe4 {[%clk 0:02:40]}  Nxe4 {[%clk 0:02:42]} 10. Nxe4 {[%clk 0:02:41]}  e6 {[%clk 0:02:40]} 11. c3 {[%clk 0:02:41]}  Be7 {[%clk 0:02:40]} 12. Qe2 {[%clk 0:02:41]}  O-O {[%clk 0:02:40]} 13. Re1 {[%clk 0:02:41]}  a5 {[%clk 0:02:33]} 14. Bf4 {[%clk 0:02:29]}  Nd5 {[%clk 0:02:32]} 15. Bd2 {[%clk 0:02:29]}  a4 {[%clk 0:02:30]} 16. Rad1 {[%clk 0:02:29]}  Qb6 {[%clk 0:02:24]} 17. c4 {[%clk 0:02:24]}  Nf6 {[%clk 0:02:09]} 18. Bc3 {[%clk 0:02:17]}  Nxe4 {[%clk 0:02:05]} 19. Bxe4 {[%clk 0:02:18]}  Bxe4 {[%clk 0:02:04]} 20. Qxe4 {[%clk 0:02:19]}  Bf6 {[%clk 0:02:04]} 21. d5 {[%clk 0:01:54]}  cxd5 {[%clk 0:02:01]} 22. cxd5 {[%clk 0:01:54]}  Bxc3 {[%clk 0:01:55]} 23. bxc3 {[%clk 0:01:55]}  exd5 {[%clk 0:01:53]} 24. Qxd5 {[%clk 0:01:46]}  Rac8 {[%clk 0:01:45]} 25. Rb1 {[%clk 0:01:41]}  Qc6 {[%clk 0:01:37]} 26. Qxc6 {[%clk 0:01:21]}  Rxc6 {[%clk 0:01:38]} 27. Rxb7 {[%clk 0:01:17]}  Rxc3 {[%clk 0:01:37]} 28. Ra7 {[%clk 0:01:16]}  Ra3 {[%clk 0:01:20]} 29. Re2 {[%clk 0:01:16]}  h5 {[%clk 0:01:18]} 30. Kg2 {[%clk 0:01:15]}  g6 {[%clk 0:01:17]} 31. Kh3 {[%clk 0:01:10]}  Kg7 {[%clk 0:01:17]} 32. f4 {[%clk 0:01:08]}  Rd8 {[%clk 0:01:12]} 33. Kh4 {[%clk 0:00:58]}  Rd5 {[%clk 0:01:05]} 34. h3 {[%clk 0:00:51]}  Rf5 {[%clk 0:00:50]} 35. Re4 {[%clk 0:00:33]}  Rxa2 {[%clk 0:00:41]} 36. g4 {[%clk 0:00:31]}  hxg4 {[%clk 0:00:38]} 37. hxg4 {[%clk 0:00:32]}  Rf6 {[%clk 0:00:29]} 38. Raxa4 {[%clk 0:00:23]}  Rxa4 {[%clk 0:00:30]} 39. Rxa4 {[%clk 0:00:23]} 1/2-1/2


[Site "https://www.chess.com"]

[Event "Titled Tuesday Blitz April 4 Early 2023"]
[White "Dushyant Sharma"]
[Black "Andreikin, Dmitry"]
[WhiteFideId "25065130"]
[BlackFideId "4158814"]
[WhiteElo "2198"]
[BlackElo "2736"]
[Result "0-1"]
[Round "01"]
[TimeControl "180+2"]
[Date "2023.04.04"]
[WhiteClock "0:00:04"]
[BlackClock "0:00:07"]

1. e4 {[%clk 0:02:59]}  c5 {[%clk 0:02:59]} 2. Nf3 {[%clk 0:02:59]}  e6 {[%clk 0:02:59]} 3. d4 {[%clk 0:02:58]}  cxd4 {[%clk 0:02:59]} 4. Nxd4 {[%clk 0:02:59]}  Nc6 {[%clk 0:02:59]} 5. Nc3 {[%clk 0:02:59]}  Qc7 {[%clk 0:02:59]} 6. f4 {[%clk 0:02:59]}  a6 {[%clk 0:02:57]} 7. Be3 {[%clk 0:03:00]}  b5 {[%clk 0:02:51]} 8. Bd3 {[%clk 0:03:00]}  Bb7 {[%clk 0:02:49]} 9. Nb3 {[%clk 0:02:59]}  d6 {[%clk 0:02:32]} 10. Qf3 {[%clk 0:02:56]}  Nf6 {[%clk 0:02:25]} 11. O-O {[%clk 0:02:55]}  Be7 {[%clk 0:02:21]} 12. Qh3 {[%clk 0:02:52]}  O-O {[%clk 0:02:15]} 13. a3 {[%clk 0:02:36]}  Rac8 {[%clk 0:02:11]} 14. Kh1 {[%clk 0:02:34]}  b4 {[%clk 0:02:00]} 15. Ne2 {[%clk 0:02:12]}  bxa3 {[%clk 0:01:55]} 16. bxa3 {[%clk 0:02:09]}  Rfd8 {[%clk 0:01:51]} 17. Ned4 {[%clk 0:01:54]}  Nxd4 {[%clk 0:01:44]} 18. Bxd4 {[%clk 0:01:42]}  Nxe4 {[%clk 0:01:32]} 19. Rae1 {[%clk 0:01:18]}  d5 {[%clk 0:01:20]} 20. Qg4 {[%clk 0:00:59]}  g6 {[%clk 0:01:02]} 21. f5 {[%clk 0:00:51]}  exf5 {[%clk 0:01:00]} 22. Rxf5 {[%clk 0:00:48]}  Qd7 {[%clk 0:00:59]} 23. Ref1 {[%clk 0:00:44]}  f6 {[%clk 0:00:30]} 24. Na5 {[%clk 0:00:12]}  Ba8 {[%clk 0:00:28]} 25. h3 {[%clk 0:00:07]}  Qc7 {[%clk 0:00:23]} 26. Bxe4 {[%clk 0:00:06]}  dxe4 {[%clk 0:00:23]} 27. Bxf6 {[%clk 0:00:04]}  Bxf6 {[%clk 0:00:12]} 28. Rxf6 {[%clk 0:00:05]}  Qxa5 {[%clk 0:00:12]} 29. Rxg6+ {[%clk 0:00:05]}  Kh8 {[%clk 0:00:10]} 30. Rf7 {[%clk 0:00:02]}  Rd1+ {[%clk 0:00:07]} 31. Kh2 {[%clk 0:00:03]}  Qe5+ {[%clk 0:00:07]} 32. Qg3 {[%clk 0:00:01]}  Qxg3+ {[%clk 0:00:07]} 33. Rxg3 {[%clk 0:00:02]}  Rg8 {[%clk 0:00:07]} 34. Rxg8+ {[%clk 0:00:02]}  Kxg8 {[%clk 0:00:08]} 35. Ra7 {[%clk 0:00:03]}  Bd5 {[%clk 0:00:07]} 36. Rd7 {[%clk 0:00:03]}  e3 {[%clk 0:00:07]} 37. c4 {[%clk 0:00:04]}  e2 {[%clk 0:00:07]} 0-1


[Site "https://www.chess.com"]

[Event "Titled Tuesday Blitz April 4 Early 2023"]
[White "Duda, Jan-Krzysztof"]
[Black "Vaglio Munoz, Jaime"]
[WhiteFideId "1170546"]
[BlackFideId "6500145"]
[WhiteElo "2790"]
[BlackElo "2199"]
[Result "1-0"]
[Round "01"]
[TimeControl "180+2"]
[Date "2023.04.04"]
[WhiteClock "0:01:59"]
[BlackClock "0:00:44"]

1. d4 {[%clk 0:02:59]}  e6 {[%clk 0:02:59]} 2. c4 {[%clk 0:02:59]}  d5 {[%clk 0:02:59]} 3. g3 {[%clk 0:02:58]}  a6 {[%clk 0:02:58]} 4. Bg2 {[%clk 0:02:56]}  b5 {[%clk 0:02:57]} 5. cxd5 {[%clk 0:02:53]}  exd5 {[%clk 0:02:55]} 6. Nc3 {[%clk 0:02:53]}  Bb7 {[%clk 0:02:51]} 7. Nh3 {[%clk 0:02:49]}  b4 {[%clk 0:02:50]} 8. Na4 {[%clk 0:02:49]}  Nd7 {[%clk 0:02:49]} 9. O-O {[%clk 0:02:46]}  Ngf6 {[%clk 0:02:47]} 10. Bg5 {[%clk 0:02:42]}  Be7 {[%clk 0:02:47]} 11. Rc1 {[%clk 0:02:42]}  O-O {[%clk 0:02:46]} 12. Nf4 {[%clk 0:02:41]}  h6 {[%clk 0:02:35]} 13. Bxf6 {[%clk 0:02:41]}  Nxf6 {[%clk 0:02:35]} 14. Nc5 {[%clk 0:02:41]}  Bc6 {[%clk 0:01:56]} 15. Nce6 {[%clk 0:02:37]}  fxe6 {[%clk 0:01:54]} 16. Rxc6 {[%clk 0:02:37]}  Bd6 {[%clk 0:01:50]} 17. Nxe6 {[%clk 0:02:36]}  Qd7 {[%clk 0:01:50]} 18. Rxd6 {[%clk 0:02:30]}  Qxd6 {[%clk 0:01:47]} 19. Nxf8 {[%clk 0:02:30]}  Rxf8 {[%clk 0:01:45]} 20. Qc2 {[%clk 0:02:30]}  Rf7 {[%clk 0:01:43]} 21. Rc1 {[%clk 0:02:27]}  Re7 {[%clk 0:01:42]} 22. Bf3 {[%clk 0:02:26]}  Ne4 {[%clk 0:01:36]} 23. Qc6 {[%clk 0:02:23]}  Nd2 {[%clk 0:01:26]} 24. Bxd5+ {[%clk 0:02:18]}  Kh8 {[%clk 0:01:23]} 25. Qxd6 {[%clk 0:02:18]}  cxd6 {[%clk 0:01:23]} 26. e3 {[%clk 0:02:18]}  b3 {[%clk 0:01:15]} 27. axb3 {[%clk 0:02:18]}  a5 {[%clk 0:01:12]} 28. h4 {[%clk 0:02:12]}  g5 {[%clk 0:01:08]} 29. hxg5 {[%clk 0:02:09]}  hxg5 {[%clk 0:01:09]} 30. Rc6 {[%clk 0:02:09]}  Rd7 {[%clk 0:01:05]} 31. g4 {[%clk 0:02:07]}  Kg7 {[%clk 0:01:04]} 32. f3 {[%clk 0:02:05]}  Kf6 {[%clk 0:00:59]} 33. Kf2 {[%clk 0:02:05]}  Ke7 {[%clk 0:00:59]} 34. Ke2 {[%clk 0:02:05]}  Nxb3 {[%clk 0:00:55]} 35. Bxb3 {[%clk 0:02:04]}  Rb7 {[%clk 0:00:55]} 36. Rc3 {[%clk 0:02:05]}  a4 {[%clk 0:00:55]} 37. Bxa4 {[%clk 0:02:05]}  Rxb2+ {[%clk 0:00:55]} 38. Bc2 {[%clk 0:02:05]}  d5 {[%clk 0:00:54]} 39. f4 {[%clk 0:02:05]}  gxf4 {[%clk 0:00:54]} 40. exf4 {[%clk 0:02:06]}  Kd6 {[%clk 0:00:53]} 41. g5 {[%clk 0:02:06]}  Rb8 {[%clk 0:00:52]} 42. f5 {[%clk 0:02:06]}  Rh8 {[%clk 0:00:51]} 43. g6 {[%clk 0:02:01]}  Rh2+ {[%clk 0:00:47]} 44. Kf1 {[%clk 0:02:00]}  Rh4 {[%clk 0:00:44]} 45. Rg3 {[%clk 0:01:59]} 1-0


[Site "https://www.chess.com"]

[Event "Titled Tuesday Blitz April 4 Early 2023"]
[White "Flynn, Jacob"]
[Black "Hakobyan, Aram"]
[WhiteFideId "2509393"]
[BlackFideId "13306677"]
[WhiteElo "2053"]
[BlackElo "2584"]
[Result "0-1"]
[Round "01"]
[TimeControl "180+2"]
[Date "2023.04.04"]
[WhiteClock "0:00:03"]
[BlackClock "0:00:13"]

1. d4 {[%clk 0:03:00]}  Nf6 {[%clk 0:02:59]} 2. c4 {[%clk 0:02:56]}  e6 {[%clk 0:02:57]} 3. Nc3 {[%clk 0:02:53]}  Bb4 {[%clk 0:02:57]} 4. Qc2 {[%clk 0:02:54]}  c5 {[%clk 0:02:54]} 5. dxc5 {[%clk 0:02:53]}  Qc7 {[%clk 0:02:55]} 6. a3 {[%clk 0:02:48]}  Bxc5 {[%clk 0:02:55]} 7. Nf3 {[%clk 0:02:47]}  Qb6 {[%clk 0:02:52]} 8. e3 {[%clk 0:02:46]}  Be7 {[%clk 0:02:52]} 9. Be2 {[%clk 0:02:45]}  O-O {[%clk 0:02:52]} 10. O-O {[%clk 0:02:45]}  d6 {[%clk 0:02:53]} 11. b4 {[%clk 0:02:45]}  a6 {[%clk 0:02:52]} 12. Bb2 {[%clk 0:02:46]}  Qc7 {[%clk 0:02:52]} 13. Rac1 {[%clk 0:02:46]}  Nbd7 {[%clk 0:02:52]} 14. Rfd1 {[%clk 0:02:47]}  b6 {[%clk 0:02:52]} 15. Nd4 {[%clk 0:02:42]}  Bb7 {[%clk 0:02:50]} 16. Bf3 {[%clk 0:02:40]}  Rac8 {[%clk 0:02:48]} 17. Ne4 {[%clk 0:02:24]}  Ne5 {[%clk 0:02:38]} 18. Nxf6+ {[%clk 0:02:22]}  Bxf6 {[%clk 0:02:39]} 19. Bxb7 {[%clk 0:02:20]}  Qxb7 {[%clk 0:02:40]} 20. Qb3 {[%clk 0:02:19]}  Rc7 {[%clk 0:02:36]} 21. Rc2 {[%clk 0:02:10]}  Rfc8 {[%clk 0:02:36]} 22. Rdc1 {[%clk 0:02:10]}  Qe4 {[%clk 0:02:29]} 23. f3 {[%clk 0:01:49]}  Qg6 {[%clk 0:02:25]} 24. e4 {[%clk 0:01:45]}  Bg5 {[%clk 0:02:19]} 25. Rd1 {[%clk 0:01:38]}  Nxc4 {[%clk 0:02:16]} 26. Bc1 {[%clk 0:01:35]}  Bf6 {[%clk 0:02:10]} 27. b5 {[%clk 0:01:29]}  Bxd4+ {[%clk 0:01:32]} 28. Rxd4 {[%clk 0:01:29]}  Ne3 {[%clk 0:01:32]} 29. Bxe3 {[%clk 0:01:00]}  Rxc2 {[%clk 0:01:31]} 30. Bd2 {[%clk 0:00:59]}  axb5 {[%clk 0:01:13]} 31. Rxd6 {[%clk 0:00:58]}  h6 {[%clk 0:01:13]} 32. Qxb5 {[%clk 0:00:55]}  Qf6 {[%clk 0:01:09]} 33. Qd3 {[%clk 0:00:54]}  Qa1+ {[%clk 0:01:08]} 34. Kf2 {[%clk 0:00:53]}  Qa2 {[%clk 0:00:58]} 35. Kg3 {[%clk 0:00:51]}  Qc4 {[%clk 0:00:55]} 36. Qxc4 {[%clk 0:00:38]}  R8xc4 {[%clk 0:00:54]} 37. Be3 {[%clk 0:00:36]}  Rb2 {[%clk 0:00:52]} 38. Rxb6 {[%clk 0:00:33]}  Re2 {[%clk 0:00:39]} 39. Rb3 {[%clk 0:00:13]}  Rcc2 {[%clk 0:00:40]} 40. Bf4 {[%clk 0:00:08]}  Rxg2+ {[%clk 0:00:37]} 41. Kh3 {[%clk 0:00:08]}  Rb2 {[%clk 0:00:29]} 42. Rc3 {[%clk 0:00:08]}  Rgc2 {[%clk 0:00:29]} 43. Rd3 {[%clk 0:00:08]}  f6 {[%clk 0:00:28]} 44. Bg3 {[%clk 0:00:08]}  e5 {[%clk 0:00:28]} 45. f4 {[%clk 0:00:08]}  exf4 {[%clk 0:00:27]} 46. Bxf4 {[%clk 0:00:09]}  Rc4 {[%clk 0:00:26]} 47. Re3 {[%clk 0:00:09]}  Rb7 {[%clk 0:00:21]} 48. Bg3 {[%clk 0:00:09]}  Re7 {[%clk 0:00:21]} 49. e5 {[%clk 0:00:09]}  f5 {[%clk 0:00:21]} 50. Rf3 {[%clk 0:00:08]}  g6 {[%clk 0:00:19]} 51. Rb3 {[%clk 0:00:08]}  Kf7 {[%clk 0:00:19]} 52. Rb6 {[%clk 0:00:08]}  f4 {[%clk 0:00:19]} 53. Rf6+ {[%clk 0:00:08]}  Kg7 {[%clk 0:00:17]} 54. Rxf4 {[%clk 0:00:06]}  Rxf4 {[%clk 0:00:16]} 55. Bxf4 {[%clk 0:00:07]}  Ra7 {[%clk 0:00:15]} 56. Bc1 {[%clk 0:00:07]}  g5 {[%clk 0:00:12]} 57. Kg4 {[%clk 0:00:06]}  Kg6 {[%clk 0:00:13]} 58. Bb2 {[%clk 0:00:04]}  Ra4+ {[%clk 0:00:13]} 59. Kf3 {[%clk 0:00:04]}  Kf5 {[%clk 0:00:14]} 60. h3 {[%clk 0:00:03]}  h5 {[%clk 0:00:14]} 61. Kg3 {[%clk 0:00:03]}  Rf4 {[%clk 0:00:13]} 0-1


[Site "https://www.chess.com"]

[Event "Titled Tuesday Blitz April 4 Early 2023"]
[White "Turzo, Attila"]
[Black "Xiong, Jeffery"]
[WhiteFideId "704954"]
[BlackFideId "2047640"]
[WhiteElo "2513"]
[BlackElo "2726"]
[Result "1/2-1/2"]
[Round "01"]
[TimeControl "180+2"]
[Date "2023.04.04"]
[WhiteClock "0:00:33"]
[BlackClock "0:02:04"]

1. e4 {[%clk 0:02:58]}  e6 {[%clk 0:03:00]} 2. d4 {[%clk 0:02:56]}  d5 {[%clk 0:03:01]} 3. Bd3 {[%clk 0:02:56]}  dxe4 {[%clk 0:02:58]} 4. Bxe4 {[%clk 0:02:57]}  Nf6 {[%clk 0:02:58]} 5. Bf3 {[%clk 0:02:57]}  c5 {[%clk 0:02:55]} 6. Ne2 {[%clk 0:02:57]}  Be7 {[%clk 0:02:55]} 7. O-O {[%clk 0:02:56]}  O-O {[%clk 0:02:55]} 8. Be3 {[%clk 0:02:55]}  Qc7 {[%clk 0:02:55]} 9. c3 {[%clk 0:02:48]}  Rd8 {[%clk 0:02:54]} 10. Qb3 {[%clk 0:02:43]}  Nbd7 {[%clk 0:02:50]} 11. Nd2 {[%clk 0:02:40]}  Rb8 {[%clk 0:02:50]} 12. Ne4 {[%clk 0:02:31]}  Nxe4 {[%clk 0:02:50]} 13. Bxe4 {[%clk 0:02:31]}  Nf6 {[%clk 0:02:48]} 14. Bf3 {[%clk 0:02:30]}  c4 {[%clk 0:02:46]} 15. Qc2 {[%clk 0:02:28]}  b5 {[%clk 0:02:46]} 16. Bf4 {[%clk 0:02:24]}  Bd6 {[%clk 0:02:47]} 17. Bxd6 {[%clk 0:02:22]}  Qxd6 {[%clk 0:02:47]} 18. Ng3 {[%clk 0:02:15]}  Nd5 {[%clk 0:02:43]} 19. Ne4 {[%clk 0:02:12]}  Qb6 {[%clk 0:02:43]} 20. Ng5 {[%clk 0:02:02]}  Nf6 {[%clk 0:02:42]} 21. Ne4 {[%clk 0:01:56]}  Nd5 {[%clk 0:02:43]} 22. Ng5 {[%clk 0:01:57]}  g6 {[%clk 0:02:43]} 23. h4 {[%clk 0:01:37]}  Bb7 {[%clk 0:02:42]} 24. h5 {[%clk 0:01:37]}  Nf6 {[%clk 0:02:41]} 25. hxg6 {[%clk 0:01:29]}  hxg6 {[%clk 0:02:41]} 26. Ne4 {[%clk 0:01:22]}  Bxe4 {[%clk 0:02:41]} 27. Bxe4 {[%clk 0:01:23]}  b4 {[%clk 0:02:40]} 28. Rab1 {[%clk 0:01:14]}  Kg7 {[%clk 0:02:39]} 29. Bf3 {[%clk 0:01:09]}  a5 {[%clk 0:02:38]} 30. a3 {[%clk 0:01:02]}  Qc7 {[%clk 0:02:37]} 31. axb4 {[%clk 0:00:55]}  axb4 {[%clk 0:02:38]} 32. g3 {[%clk 0:00:52]}  Rb5 {[%clk 0:02:38]} 33. Rbc1 {[%clk 0:00:50]}  Rdb8 {[%clk 0:02:38]} 34. Qd2 {[%clk 0:00:44]}  bxc3 {[%clk 0:02:39]} 35. bxc3 {[%clk 0:00:43]}  Nd5 {[%clk 0:02:33]} 36. Kg2 {[%clk 0:00:37]}  Qa5 {[%clk 0:02:31]} 37. Rh1 {[%clk 0:00:33]}  Kf6 {[%clk 0:02:04]} 1/2-1/2


[Site "https://www.chess.com"]

[Event "Titled Tuesday Blitz April 4 Early 2023"]
[White "Vidit, Santosh Gujrathi"]
[Black "Vakhidov, Shahzod"]
[WhiteFideId "5029465"]
[BlackFideId "14205270"]
[WhiteElo "2651"]
[BlackElo "2212"]
[Result "1-0"]
[Round "01"]
[TimeControl "180+2"]
[Date "2023.04.04"]
[WhiteClock "0:00:34"]
[BlackClock "0:00:03"]

1. e4 {[%clk 0:02:52]}  c5 {[%clk 0:02:59]} 2. Nf3 {[%clk 0:02:52]}  g6 {[%clk 0:03:00]} 3. d4 {[%clk 0:02:52]}  cxd4 {[%clk 0:03:01]} 4. Nxd4 {[%clk 0:02:52]}  Bg7 {[%clk 0:03:01]} 5. c4 {[%clk 0:02:53]}  Nc6 {[%clk 0:03:01]} 6. Be3 {[%clk 0:02:54]}  Nf6 {[%clk 0:03:02]} 7. Nc3 {[%clk 0:02:54]}  O-O {[%clk 0:03:02]} 8. Be2 {[%clk 0:02:54]}  d6 {[%clk 0:03:03]} 9. O-O {[%clk 0:02:55]}  Bd7 {[%clk 0:03:03]} 10. Nc2 {[%clk 0:02:55]}  Rc8 {[%clk 0:02:59]} 11. f3 {[%clk 0:02:54]}  a6 {[%clk 0:02:57]} 12. Qd2 {[%clk 0:02:54]}  Ne5 {[%clk 0:02:31]} 13. b3 {[%clk 0:02:51]}  Kh8 {[%clk 0:02:26]} 14. a4 {[%clk 0:02:48]}  Qa5 {[%clk 0:02:19]} 15. Kh1 {[%clk 0:02:42]}  Nh5 {[%clk 0:02:12]} 16. Bd4 {[%clk 0:02:37]}  f5 {[%clk 0:01:49]} 17. f4 {[%clk 0:02:34]}  Ng4 {[%clk 0:01:50]} 18. Bxg7+ {[%clk 0:02:24]}  Nxg7 {[%clk 0:01:40]} 19. Bxg4 {[%clk 0:02:18]}  fxg4 {[%clk 0:01:40]} 20. Ne3 {[%clk 0:02:19]}  Qb4 {[%clk 0:01:30]} 21. Rab1 {[%clk 0:01:58]}  b5 {[%clk 0:01:28]} 22. Ned5 {[%clk 0:01:57]}  Qc5 {[%clk 0:01:23]} 23. axb5 {[%clk 0:01:42]}  e6 {[%clk 0:01:18]} 24. Ne3 {[%clk 0:01:42]}  axb5 {[%clk 0:01:17]} 25. Nxb5 {[%clk 0:01:39]}  Bxb5 {[%clk 0:00:46]} 26. cxb5 {[%clk 0:01:40]}  g3 {[%clk 0:00:38]} 27. hxg3 {[%clk 0:01:34]}  Nh5 {[%clk 0:00:35]} 28. Rf3 {[%clk 0:01:25]}  Nf6 {[%clk 0:00:34]} 29. Qd3 {[%clk 0:01:21]}  Qc3 {[%clk 0:00:29]} 30. Qxc3 {[%clk 0:01:19]}  Rxc3 {[%clk 0:00:30]} 31. e5 {[%clk 0:01:01]}  Ne4 {[%clk 0:00:30]} 32. Nc4 {[%clk 0:00:38]}  d5 {[%clk 0:00:28]} 33. Nd6 {[%clk 0:00:39]}  Nxg3+ {[%clk 0:00:22]} 34. Kh2 {[%clk 0:00:39]}  Ne2 {[%clk 0:00:22]} 35. Rxc3 {[%clk 0:00:33]}  Nxc3 {[%clk 0:00:22]} 36. Rc1 {[%clk 0:00:34]}  d4 {[%clk 0:00:23]} 37. b6 {[%clk 0:00:33]}  Rb8 {[%clk 0:00:07]} 38. b7 {[%clk 0:00:34]}  Kg7 {[%clk 0:00:06]} 39. Rc2 {[%clk 0:00:34]}  h6 {[%clk 0:00:03]} 40. Rd2 {[%clk 0:00:34]} 1-0


[Site "https://www.chess.com"]

[Event "Titled Tuesday Blitz April 4 Early 2023"]
[White "Mitrabha, Guha"]
[Black "Perrine, Dalton"]
[WhiteFideId "5057000"]
[BlackFideId "2048434"]
[WhiteElo "2507"]
[BlackElo "2257"]
[Result "1-0"]
[Round "01"]
[TimeControl "180+2"]
[Date "2023.04.04"]
[WhiteClock "0:00:32"]
[BlackClock "0:00:03"]

1. Nf3 {[%clk 0:02:48]}  d5 {[%clk 0:02:59]} 2. c4 {[%clk 0:02:25]}  e6 {[%clk 0:02:59]} 3. g3 {[%clk 0:02:24]}  Nf6 {[%clk 0:02:59]} 4. Bg2 {[%clk 0:02:25]}  Be7 {[%clk 0:03:00]} 5. O-O {[%clk 0:02:26]}  O-O {[%clk 0:02:59]} 6. b3 {[%clk 0:02:27]}  d4 {[%clk 0:02:53]} 7. e3 {[%clk 0:02:23]}  c5 {[%clk 0:02:53]} 8. exd4 {[%clk 0:02:23]}  cxd4 {[%clk 0:02:54]} 9. Re1 {[%clk 0:02:24]}  Nc6 {[%clk 0:02:50]} 10. d3 {[%clk 0:02:22]}  Nd7 {[%clk 0:02:40]} 11. Na3 {[%clk 0:02:16]}  Bb4 {[%clk 0:02:28]} 12. Re2 {[%clk 0:02:06]}  e5 {[%clk 0:02:04]} 13. Nc2 {[%clk 0:02:00]}  Bc3 {[%clk 0:02:04]} 14. Rb1 {[%clk 0:01:53]}  a5 {[%clk 0:01:54]} 15. Bd2 {[%clk 0:01:50]}  Bxd2 {[%clk 0:01:39]} 16. Qxd2 {[%clk 0:01:51]}  f6 {[%clk 0:01:33]} 17. a3 {[%clk 0:01:48]}  Nc5 {[%clk 0:01:33]} 18. b4 {[%clk 0:01:45]}  axb4 {[%clk 0:01:34]} 19. axb4 {[%clk 0:01:45]}  Na4 {[%clk 0:01:34]} 20. Ra1 {[%clk 0:01:45]}  Bg4 {[%clk 0:01:22]} 21. h3 {[%clk 0:01:38]}  Bh5 {[%clk 0:01:20]} 22. b5 {[%clk 0:01:37]}  Ne7 {[%clk 0:01:15]} 23. Ree1 {[%clk 0:01:36]}  Re8 {[%clk 0:00:32]} 24. Nb4 {[%clk 0:01:33]}  Qd6 {[%clk 0:00:20]} 25. Nh4 {[%clk 0:01:28]}  Nc5 {[%clk 0:00:20]} 26. Qc2 {[%clk 0:01:09]}  g5 {[%clk 0:00:18]} 27. Nf3 {[%clk 0:00:59]}  Bg6 {[%clk 0:00:18]} 28. Nd2 {[%clk 0:00:58]}  Kg7 {[%clk 0:00:15]} 29. Bf1 {[%clk 0:00:51]}  Qd7 {[%clk 0:00:13]} 30. Qb2 {[%clk 0:00:50]}  Qd6 {[%clk 0:00:13]} 31. Rxa8 {[%clk 0:00:48]}  Rxa8 {[%clk 0:00:14]} 32. Ra1 {[%clk 0:00:49]}  Na4 {[%clk 0:00:14]} 33. Qb3 {[%clk 0:00:47]}  Nc5 {[%clk 0:00:14]} 34. Qb1 {[%clk 0:00:47]}  Rxa1 {[%clk 0:00:12]} 35. Qxa1 {[%clk 0:00:48]}  b6 {[%clk 0:00:13]} 36. Qa7 {[%clk 0:00:48]}  Kf8 {[%clk 0:00:11]} 37. Be2 {[%clk 0:00:45]}  h6 {[%clk 0:00:10]} 38. Bf3 {[%clk 0:00:43]}  Nxd3 {[%clk 0:00:08]} 39. Nd5 {[%clk 0:00:43]}  Nxd5 {[%clk 0:00:08]} 40. Bxd5 {[%clk 0:00:44]}  Nc5 {[%clk 0:00:07]} 41. Qa8+ {[%clk 0:00:43]}  Ke7 {[%clk 0:00:08]} 42. Qg8 {[%clk 0:00:43]}  Be8 {[%clk 0:00:07]} 43. Qg7+ {[%clk 0:00:43]}  Kd8 {[%clk 0:00:07]} 44. Qxh6 {[%clk 0:00:43]}  Bxb5 {[%clk 0:00:08]} 45. h4 {[%clk 0:00:40]}  gxh4 {[%clk 0:00:06]} 46. gxh4 {[%clk 0:00:41]}  Be8 {[%clk 0:00:06]} 47. Qg7 {[%clk 0:00:41]}  Qe7 {[%clk 0:00:07]} 48. Qg8 {[%clk 0:00:41]}  e4 {[%clk 0:00:05]} 49. Qg3 {[%clk 0:00:38]}  Kc8 {[%clk 0:00:03]} 50. Bxe4 {[%clk 0:00:32]} 1-0


[Site "https://www.chess.com"]